fUST/lending_fUST_20260608
["ID","MTS","AMOUNT","RATE_DAILY","PERIOD"]
[424409965,1780849846000,-500.0,0.00019178,2]
[424409966,1780849846000,-500.0,0.00019178,2]
[424409967,1780849846000,-1395.81,0.00019178,2]
[424409970,1780849846000,-500.0,0.00019178,2]
[424409954,1780849846000,-2939.55,0.00019178,2]
[424409968,1780849846000,-5181.99,0.00019178,2]
[424409969,1780849846000,-500.0,0.00019178,2]
[424410016,1780849846000,-500.0,0.00019178,2]
[424409982,1780849846000,-500.0,0.00019178,2]
[424409980,1780849846000,-224.86914852,0.00019178,2]
[424409979,1780849846000,-500.0,0.00019178,2]
[424409977,1780849846000,-500.0,0.00019178,2]
[424409985,1780849846000,-11860.97,0.00019178,2]
[424409976,1780849846000,-500.0,0.00019178,2]
[424409975,1780849846000,-500.0,0.00019178,2]
[424409974,1780849846000,-500.0,0.00019178,2]
[424409973,1780849846000,-500.0,0.00019178,2]
[424409972,1780849846000,-500.0,0.00019178,2]
[424409971,1780849846000,-1893.21,0.00019178,2]
[424409978,1780849846000,-11432.12,0.00019178,2]
[424410064,1780849847000,-573.0533,0.00019452,2]
[424410058,1780849847000,-321.85442624,0.00019302,2]
[424410060,1780849847000,-166.06232947,0.00019317,2]
[424410063,1780849847000,-2292.233,0.00019452,2]
[424410065,1780849847000,-500.0,0.00019452,2]
[424410052,1780849847000,-160.0,0.00019279,30]
[424410057,1780849847000,-247.85939171,0.00019302,2]
[424410053,1780849847000,-151.0,0.00019279,2]
[424410055,1780849847000,-332.14921482,0.00019302,2]
[424410054,1780849847000,-3620.86432098,0.000193,2]
[424410061,1780849847000,-168.35730556,0.00019319,30]
[424410056,1780849847000,-391.49440141,0.00019302,2]
[424410059,1780849847000,-161.15202813,0.00019317,2]
[424410062,1780849847000,-201.7296,0.00019452,2]
[424410071,1780849847000,-650.09,0.00019452,2]
[424410068,1780849847000,-466.11770827,0.00019452,2]
[424410069,1780849847000,-500.0,0.00019452,2]
[424410070,1780849847000,-1146.55,0.00019452,2]
[424410072,1780849847000,-500.0,0.00019452,2]
[424410074,1780849847000,-1468.03,0.00019452,2]
[424410078,1780849847000,-500.0,0.00019452,2]
[424410075,1780849847000,-500.0,0.00019452,2]
[424410077,1780849847000,-500.0,0.00019452,2]
[424410073,1780849847000,-508.63,0.00019452,2]
[424410076,1780849847000,-500.0,0.00019452,2]
[424410079,1780849847000,-961.36,0.00019452,2]
[424410080,1780849847000,-500.0,0.00019452,2]
[424410051,1780849847000,-10087.21650644,0.00019279,30]
[424410066,1780849847000,-500.0,0.00019452,2]
[424410049,1780849847000,-25000.0,0.0001925,2]
[424410034,1780849847000,-377.974263,0.00019178,2]
[424410048,1780849847000,-490.29,0.00019178,2]
[424410018,1780849847000,-2517.47,0.00019178,2]
[424410020,1780849847000,-500.0,0.00019178,2]
[424410019,1780849847000,-1024.64,0.00019178,2]
[424410021,1780849847000,-9057.27,0.00019178,2]
[424410024,1780849847000,-557.01,0.00019178,2]
[424410027,1780849847000,-583.57,0.00019178,2]
[424410023,1780849847000,-3081.55,0.00019178,2]
[424410022,1780849847000,-554.53,0.00019178,2]
[424410026,1780849847000,-500.0,0.00019178,2]
[424410025,1780849847000,-500.0,0.00019178,2]
[424410028,1780849847000,-500.0,0.00019178,2]
[424410029,1780849847000,-500.0,0.00019178,2]
[424410030,1780849847000,-500.0,0.00019178,2]
[424410032,1780849847000,-670.25,0.00019178,2]
[424410050,1780849847000,-1433.3493322,0.00019259,2]
[424410031,1780849847000,-500.0,0.00019178,2]
[424410083,1780849847000,-500.0,0.00019452,2]
[424410035,1780849847000,-500.0,0.00019178,2]
[424410038,1780849847000,-1421.31,0.00019178,2]
[424410036,1780849847000,-554.47,0.00019178,2]
[424410037,1780849847000,-500.0,0.00019178,2]
[424410039,1780849847000,-647.22,0.00019178,2]
[424410040,1780849847000,-500.0,0.00019178,2]
[424410041,1780849847000,-500.0,0.00019178,2]
[424410044,1780849847000,-12268.77,0.00019178,2]
[424410042,1780849847000,-500.0,0.00019178,2]
[424410043,1780849847000,-500.0,0.00019178,2]
[424410045,1780849847000,-1671.2,0.00019178,2]
[424410046,1780849847000,-500.0,0.00019178,2]
[424410047,1780849847000,-3371.02,0.00019178,2]
[424410033,1780849847000,-1032.97,0.00019178,2]
[424410081,1780849847000,-1619.87,0.00019452,2]
[424410067,1780849847000,-996.2,0.00019452,2]
[424410144,1780849847000,-500.0,0.00019452,2]
[424410116,1780849847000,-500.0,0.00019452,2]
[424410120,1780849847000,-698.9,0.00019452,2]
[424410121,1780849847000,-574.40996841,0.00019452,2]
[424410123,1780849847000,-2206.3,0.00019452,2]
[424410122,1780849847000,-500.0,0.00019452,2]
[424410125,1780849847000,-500.0,0.00019452,2]
[424410124,1780849847000,-500.0,0.00019452,2]
[424410126,1780849847000,-500.0,0.00019452,2]
[424410127,1780849847000,-500.0,0.00019452,2]
[424410131,1780849847000,-500.0,0.00019452,2]
[424410128,1780849847000,-897.98,0.00019452,2]
[424410132,1780849847000,-617.87,0.00019452,2]
[424410129,1780849847000,-500.0,0.00019452,2]
[424410130,1780849847000,-602.79,0.00019452,2]
[424410133,1780849847000,-500.0,0.00019452,2]
[424410134,1780849847000,-993.47,0.00019452,2]
[424410135,1780849847000,-1737.17,0.00019452,2]
[424410137,1780849847000,-500.0,0.00019452,2]
[424410136,1780849847000,-500.0,0.00019452,2]
[424410138,1780849847000,-500.0,0.00019452,2]
[424410143,1780849847000,-500.0,0.00019452,2]
[424410145,1780849847000,-509.11,0.00019452,2]
[424410142,1780849847000,-500.0,0.00019452,2]
[424410140,1780849847000,-1316.99,0.00019452,2]
[424410139,1780849847000,-2001.03,0.00019452,2]
[424410141,1780849847000,-1132.63,0.00019452,2]
[424410146,1780849847000,-500.0,0.00019452,2]
[424410082,1780849847000,-500.0,0.00019452,2]
[424410147,1780849847000,-500.0,0.00019452,2]
[424410114,1780849847000,-500.0,0.00019452,2]
[424410112,1780849847000,-500.0,0.00019452,2]
[424410085,1780849847000,-1190.19,0.00019452,2]
[424410111,1780849847000,-500.0,0.00019452,2]
[424410118,1780849847000,-557.48,0.00019452,2]
[424410087,1780849847000,-500.0,0.00019452,2]
[424410089,1780849847000,-500.0,0.00019452,2]
[424410086,1780849847000,-500.0,0.00019452,2]
[424410090,1780849847000,-856.89,0.00019452,2]
[424410091,1780849847000,-500.0,0.00019452,2]
[424410088,1780849847000,-705.57,0.00019452,2]
[424410092,1780849847000,-784.84,0.00019452,2]
[424410095,1780849847000,-1000.0,0.00019452,2]
[424410093,1780849847000,-500.0,0.00019452,2]
[424410096,1780849847000,-906.94,0.00019452,2]
[424410094,1780849847000,-500.0,0.00019452,2]
[424410097,1780849847000,-666.36,0.00019452,2]
[424410099,1780849847000,-500.0,0.00019452,2]
[424410100,1780849847000,-500.0,0.00019452,2]
[424410084,1780849847000,-500.0,0.00019452,2]
[424410101,1780849847000,-500.0,0.00019452,2]
[424410098,1780849847000,-500.0,0.00019452,2]
[424410115,1780849847000,-500.0,0.00019452,2]
[424410117,1780849847000,-500.0,0.00019452,2]
[424410119,1780849847000,-766.92,0.00019452,2]
[424410110,1780849847000,-500.0,0.00019452,2]
[424410109,1780849847000,-500.0,0.00019452,2]
[424410113,1780849847000,-500.0,0.00019452,2]
[424410107,1780849847000,-500.0,0.00019452,2]
[424410106,1780849847000,-643.57,0.00019452,2]
[424410105,1780849847000,-645.75371082,0.00019452,2]
[424410103,1780849847000,-500.0,0.00019452,2]
[424410104,1780849847000,-500.0,0.00019452,2]
[424410108,1780849847000,-2075.45,0.00019452,2]
[424410102,1780849847000,-909.25,0.00019452,2]
[424410189,1780849848000,-500.0,0.00019452,2]
[424410192,1780849848000,-666.7,0.00019452,2]
[424410190,1780849848000,-500.0,0.00019452,2]
[424410188,1780849848000,-1300.35,0.00019452,2]
[424410184,1780849848000,-399.60563597,0.00019452,2]
[424410183,1780849848000,-500.0,0.00019452,2]
[424410182,1780849848000,-500.0,0.00019452,2]
[424410185,1780849848000,-500.0,0.00019452,2]
[424410180,1780849848000,-500.0,0.00019452,2]
[424410186,1780849848000,-2207.89,0.00019452,2]
[424410191,1780849848000,-500.0,0.00019452,2]
[424410187,1780849848000,-500.0,0.00019452,2]
[424410181,1780849848000,-500.0,0.00019452,2]
[424410201,1780849848000,-500.0,0.00019452,2]
[424410194,1780849848000,-151.0,0.00019452,2]
[424410196,1780849848000,-500.0,0.00019452,2]
[424410197,1780849848000,-893.09,0.00019452,2]
[424410200,1780849848000,-1202.71,0.00019452,2]
[424410198,1780849848000,-940.8,0.00019452,2]
[424410195,1780849848000,-2224.3,0.00019452,2]
[424410199,1780849848000,-672.19,0.00019452,2]
[424410205,1780849848000,-500.0,0.00019452,2]
[424410202,1780849848000,-1376.08,0.00019452,2]
[424410206,1780849848000,-797.0,0.00019452,2]
[424410204,1780849848000,-1051.07,0.00019452,2]
[424410203,1780849848000,-500.0,0.00019452,2]
[424410179,1780849848000,-1206.38,0.00019452,2]
[424410193,1780849848000,-151.0,0.00019452,2]
[424410177,1780849848000,-500.0,0.00019452,2]
[424410164,1780849848000,-500.0,0.00019452,2]
[424410175,1780849848000,-500.0,0.00019452,2]
[424410148,1780849848000,-500.0,0.00019452,2]
[424410149,1780849848000,-500.0,0.00019452,2]
[424410150,1780849848000,-500.0,0.00019452,2]
[424410151,1780849848000,-500.0,0.00019452,2]
[424410152,1780849848000,-500.0,0.00019452,2]
[424410157,1780849848000,-500.0,0.00019452,2]
[424410155,1780849848000,-500.0,0.00019452,2]
[424410159,1780849848000,-676.65,0.00019452,2]
[424410153,1780849848000,-2324.37,0.00019452,2]
[424410156,1780849848000,-500.0,0.00019452,2]
[424410154,1780849848000,-500.0,0.00019452,2]
[424410158,1780849848000,-542.24,0.00019452,2]
[424410160,1780849848000,-500.0,0.00019452,2]
[424410162,1780849848000,-718.33,0.00019452,2]
[424410161,1780849848000,-500.0,0.00019452,2]
[424410163,1780849848000,-500.0,0.00019452,2]
[424410168,1780849848000,-4242.72,0.00019452,2]
[424410165,1780849848000,-500.0,0.00019452,2]
[424410169,1780849848000,-500.0,0.00019452,2]
[424410166,1780849848000,-2913.93,0.00019452,2]
[424410167,1780849848000,-1000.0,0.00019452,2]
[424410170,1780849848000,-766.75,0.00019452,2]
[424410171,1780849848000,-500.0,0.00019452,2]
[424410173,1780849848000,-500.0,0.00019452,2]
[424410172,1780849848000,-1168.03,0.00019452,2]
[424410174,1780849848000,-612.32,0.00019452,2]
[424410176,1780849848000,-500.0,0.00019452,2]
[424410178,1780849848000,-968.26,0.00019452,2]
[424410207,1780849848000,-500.0,0.00019452,2]
[424410209,1780849848000,-664.11,0.00019452,2]
[424410208,1780849848000,-2499.19,0.00019452,2]
[424410244,1780849848000,-1893.21,0.00019452,2]
[424410242,1780849848000,-500.0,0.00019452,2]
[424410245,1780849848000,-500.0,0.00019452,2]
[424410246,1780849848000,-500.0,0.00019452,2]
[424410247,1780849848000,-500.0,0.00019452,2]
[424410248,1780849848000,-500.0,0.00019452,2]
[424410249,1780849848000,-500.0,0.00019452,2]
[424410250,1780849848000,-500.0,0.00019452,2]
[424410251,1780849848000,-11432.12,0.00019452,2]
[424410252,1780849848000,-500.0,0.00019452,2]
[424410253,1780849848000,-500.0,0.00019452,2]
[424410254,1780849848000,-500.0,0.00019452,2]
[424410257,1780849848000,-500.0,0.00019452,2]
[424410243,1780849848000,-500.0,0.00019452,2]
[424410255,1780849848000,-3457.79,0.00019452,2]
[424410262,1780849848000,-500.0,0.00019452,2]
[424410260,1780849848000,-500.0,0.00019452,2]
[424410261,1780849848000,-4181.77,0.00019452,2]
[424410259,1780849848000,-6467.93,0.00019452,2]
[424410264,1780849848000,-500.0,0.00019452,2]
[424410263,1780849848000,-1324.71,0.00019452,2]
[424410266,1780849848000,-2106.67,0.00019452,2]
[424410267,1780849848000,-500.0,0.00019452,2]
[424410269,1780849848000,-500.0,0.00019452,2]
[424410268,1780849848000,-1189.6,0.00019452,2]
[424410270,1780849848000,-1086.02,0.00019452,2]
[424410265,1780849848000,-691.71,0.00019452,2]
[424410212,1780849848000,-500.0,0.00019452,2]
[424410258,1780849848000,-500.0,0.00019452,2]
[424410241,1780849848000,-5181.99,0.00019452,2]
[424410256,1780849848000,-11860.97,0.00019452,2]
[424410240,1780849848000,-1395.81,0.00019452,2]
[424410210,1780849848000,-500.0,0.00019452,2]
[424410239,1780849848000,-500.0,0.00019452,2]
[424410211,1780849848000,-1383.62,0.00019452,2]
[424410215,1780849848000,-500.0,0.00019452,2]
[424410213,1780849848000,-842.28,0.00019452,2]
[424410214,1780849848000,-684.39,0.00019452,2]
[424410218,1780849848000,-565.81,0.00019452,2]
[424410219,1780849848000,-2741.99,0.00019452,2]
[424410217,1780849848000,-600.42,0.00019452,2]
[424410220,1780849848000,-500.0,0.00019452,2]
[424410225,1780849848000,-6397.84,0.00019452,2]
[424410227,1780849848000,-686.44,0.00019452,2]
[424410224,1780849848000,-500.0,0.00019452,2]
[424410221,1780849848000,-1139.97,0.00019452,2]
[424410216,1780849848000,-517.85,0.00019452,2]
[424410234,1780849848000,-500.0,0.00019452,2]
[424410223,1780849848000,-837.4,0.00019452,2]
[424410228,1780849848000,-1964.76,0.00019452,2]
[424410226,1780849848000,-500.0,0.00019452,2]
[424410229,1780849848000,-1123.77,0.00019452,2]
[424410231,1780849848000,-500.0,0.00019452,2]
[424410230,1780849848000,-2939.55,0.00019452,2]
[424410232,1780849848000,-779.15,0.00019452,2]
[424410235,1780849848000,-1691.59,0.00019452,2]
[424410233,1780849848000,-863.7,0.00019452,2]
[424410236,1780849848000,-500.0,0.00019452,2]
[424410222,1780849848000,-3730.47,0.00019452,2]
[424410237,1780849848000,-14346.31,0.00019452,2]
[424410238,1780849848000,-500.0,0.00019452,2]
[424410315,1780849849000,-168.35730556,0.00019538,30]
[424410314,1780849849000,-20000.0,0.000195,2]
[424410307,1780849849000,-500.0,0.00019452,2]
[424410318,1780849849000,-259.494234,0.000196,2]
[424410313,1780849849000,-490.29,0.00019452,2]
[424410316,1780849849000,-300.0,0.00019589,3]
[424410309,1780849849000,-12268.77,0.00019452,2]
[424410310,1780849849000,-1671.2,0.00019452,2]
[424410311,1780849849000,-500.0,0.00019452,2]
[424410308,1780849849000,-171.28286524,0.00019452,2]
[424410305,1780849849000,-500.0,0.00019452,2]
[424410319,1780849849000,-259.494233,0.000196,2]
[424410312,1780849849000,-3371.02,0.00019452,2]
[424410324,1780849849000,-500.0,0.00019726,2]
[424410334,1780849849000,-500.0,0.00019726,2]
[424410320,1780849849000,-621.3943,0.00019726,2]
[424410322,1780849849000,-573.0533,0.00019726,2]
[424410317,1780849849000,-151.0,0.00019593,2]
[424410323,1780849849000,-500.0,0.00019726,2]
[424410321,1780849849000,-1670.8387,0.00019726,2]
[424410327,1780849849000,-1146.55,0.00019726,2]
[424410328,1780849849000,-650.09,0.00019726,2]
[424410326,1780849849000,-500.0,0.00019726,2]
[424410329,1780849849000,-606.08013701,0.00019726,2]
[424410331,1780849849000,-1468.03,0.00019726,2]
[424410332,1780849849000,-500.0,0.00019726,2]
[424410330,1780849849000,-508.63,0.00019726,2]
[424410339,1780849849000,-500.0,0.00019726,2]
[424410306,1780849849000,-541.2381865,0.00019452,2]
[424410325,1780849849000,-996.2,0.00019726,2]
[424410304,1780849849000,-647.22,0.00019452,2]
[424410272,1780849849000,-500.0,0.00019452,2]
[424410303,1780849849000,-1421.31,0.00019452,2]
[424410271,1780849849000,-846.13,0.00019452,2]
[424410275,1780849849000,-500.0,0.00019452,2]
[424410273,1780849849000,-544.02,0.00019452,2]
[424410274,1780849849000,-557.99,0.00019452,2]
[424410276,1780849849000,-298.88805861,0.00019452,2]
[424410277,1780849849000,-831.65,0.00019452,2]
[424410279,1780849849000,-1495.68,0.00019452,2]
[424410281,1780849849000,-500.0,0.00019452,2]
[424410280,1780849849000,-519.37,0.00019452,2]
[424410282,1780849849000,-500.0,0.00019452,2]
[424410284,1780849849000,-2517.47,0.00019452,2]
[424410278,1780849849000,-500.0,0.00019452,2]
[424410283,1780849849000,-834.5,0.00019452,2]
[424410285,1780849849000,-1024.64,0.00019452,2]
[424410302,1780849849000,-500.0,0.00019452,2]
[424410286,1780849849000,-500.0,0.00019452,2]
[424410288,1780849849000,-554.53,0.00019452,2]
[424410287,1780849849000,-9057.27,0.00019452,2]
[424410294,1780849849000,-500.0,0.00019452,2]
[424410290,1780849849000,-557.01,0.00019452,2]
[424410292,1780849849000,-500.0,0.00019452,2]
[424410297,1780849849000,-500.0,0.00019452,2]
[424410298,1780849849000,-670.25,0.00019452,2]
[424410291,1780849849000,-500.0,0.00019452,2]
[424410293,1780849849000,-583.57,0.00019452,2]
[424410295,1780849849000,-500.0,0.00019452,2]
[424410296,1780849849000,-500.0,0.00019452,2]
[424410301,1780849849000,-554.47,0.00019452,2]
[424410299,1780849849000,-1032.97,0.00019452,2]
[424410300,1780849849000,-421.59363021,0.00019452,2]
[424410289,1780849849000,-3081.55,0.00019452,2]
[424410335,1780849849000,-961.36,0.00019726,2]
[424410333,1780849849000,-500.0,0.00019726,2]
[424410337,1780849849000,-1619.87,0.00019726,2]
[424410374,1780849849000,-698.9,0.00019726,2]
[424410377,1780849849000,-500.0,0.00019726,2]
[424410379,1780849849000,-184.53395573,0.00019726,2]
[424410376,1780849849000,-2206.3,0.00019726,2]
[424410371,1780849849000,-594.16118873,0.00019726,2]
[424410375,1780849849000,-500.0,0.00019726,2]
[424410378,1780849849000,-500.0,0.00019726,2]
[424410380,1780849849000,-897.98,0.00019726,2]
[424410382,1780849849000,-500.0,0.00019726,2]
[424410381,1780849849000,-500.0,0.00019726,2]
[424410383,1780849849000,-602.79,0.00019726,2]
[424410386,1780849849000,-500.0,0.00019726,2]
[424410388,1780849849000,-1737.17,0.00019726,2]
[424410385,1780849849000,-617.87,0.00019726,2]
[424410373,1780849849000,-766.92,0.00019726,2]
[424410387,1780849849000,-993.47,0.00019726,2]
[424410390,1780849849000,-500.0,0.00019726,2]
[424410391,1780849849000,-293.27681395,0.00019726,2]
[424410389,1780849849000,-544.77822561,0.00019726,2]
[424410392,1780849849000,-2001.03,0.00019726,2]
[424410394,1780849849000,-1132.63,0.00019726,2]
[424410393,1780849849000,-1316.99,0.00019726,2]
[424410395,1780849849000,-638.94288835,0.00019726,2]
[424410396,1780849849000,-500.0,0.00019726,2]
[424410397,1780849849000,-500.0,0.00019726,2]
[424410398,1780849849000,-509.11,0.00019726,2]
[424410402,1780849849000,-500.0,0.00019726,2]
[424410399,1780849849000,-409.6554965,0.00019726,2]
[424410401,1780849849000,-500.0,0.00019726,2]
[424410338,1780849849000,-500.0,0.00019726,2]
[424410384,1780849849000,-500.0,0.00019726,2]
[424410372,1780849849000,-557.48,0.00019726,2]
[424410400,1780849849000,-500.0,0.00019726,2]
[424410368,1780849849000,-500.0,0.00019726,2]
[424410336,1780849849000,-500.0,0.00019726,2]
[424410340,1780849849000,-500.0,0.00019726,2]
[424410343,1780849849000,-500.0,0.00019726,2]
[424410342,1780849849000,-500.0,0.00019726,2]
[424410341,1780849849000,-1190.19,0.00019726,2]
[424410348,1780849849000,-784.84,0.00019726,2]
[424410344,1780849849000,-705.57,0.00019726,2]
[424410346,1780849849000,-856.89,0.00019726,2]
[424410370,1780849849000,-500.0,0.00019726,2]
[424410347,1780849849000,-500.0,0.00019726,2]
[424410350,1780849849000,-1000.0,0.00019726,2]
[424410351,1780849849000,-906.94,0.00019726,2]
[424410349,1780849849000,-500.0,0.00019726,2]
[424410352,1780849849000,-666.36,0.00019726,2]
[424410356,1780849849000,-500.0,0.00019726,2]
[424410345,1780849849000,-645.85929236,0.00019726,2]
[424410355,1780849849000,-500.0,0.00019726,2]
[424410354,1780849849000,-500.0,0.00019726,2]
[424410369,1780849849000,-500.0,0.00019726,2]
[424410367,1780849849000,-500.0,0.00019726,2]
[424410363,1780849849000,-500.0,0.00019726,2]
[424410360,1780849849000,-643.57,0.00019726,2]
[424410365,1780849849000,-500.0,0.00019726,2]
[424410366,1780849849000,-500.0,0.00019726,2]
[424410362,1780849849000,-2075.45,0.00019726,2]
[424410364,1780849849000,-411.85307051,0.00019726,2]
[424410358,1780849849000,-500.0,0.00019726,2]
[424410359,1780849849000,-326.61768192,0.00019726,2]
[424410357,1780849849000,-909.25,0.00019726,2]
[424410353,1780849849000,-500.0,0.00019726,2]
[424410361,1780849849000,-500.0,0.00019726,2]
[424410436,1780849850000,-500.0,0.00019726,2]
[424410448,1780849850000,-672.19,0.00019726,2]
[424410446,1780849850000,-893.09,0.00019726,2]
[424410447,1780849850000,-940.8,0.00019726,2]
[424410445,1780849850000,-500.0,0.00019726,2]
[424410444,1780849850000,-2224.3,0.00019726,2]
[424410437,1780849850000,-2207.89,0.00019726,2]
[424410441,1780849850000,-627.75967399,0.00019726,2]
[424410442,1780849850000,-500.0,0.00019726,2]
[424410438,1780849850000,-500.0,0.00019726,2]
[424410439,1780849850000,-1300.35,0.00019726,2]
[424410440,1780849850000,-500.0,0.00019726,2]
[424410443,1780849850000,-666.7,0.00019726,2]
[424410449,1780849850000,-1202.71,0.00019726,2]
[424410464,1780849850000,-500.0,0.00019726,2]
[424410451,1780849850000,-1376.08,0.00019726,2]
[424410456,1780849850000,-500.0,0.00019726,2]
[424410452,1780849850000,-500.0,0.00019726,2]
[424410455,1780849850000,-797.0,0.00019726,2]
[424410454,1780849850000,-500.0,0.00019726,2]
[424410453,1780849850000,-1051.07,0.00019726,2]
[424410457,1780849850000,-2499.19,0.00019726,2]
[424410459,1780849850000,-500.0,0.00019726,2]
[424410458,1780849850000,-664.11,0.00019726,2]
[424410460,1780849850000,-1383.62,0.00019726,2]
[424410462,1780849850000,-842.28,0.00019726,2]
[424410461,1780849850000,-500.0,0.00019726,2]
[424410468,1780849850000,-2741.99,0.00019726,2]
[424410435,1780849850000,-500.0,0.00019726,2]
[424410450,1780849850000,-500.0,0.00019726,2]
[424410432,1780849850000,-229.87779621,0.00019726,2]
[424410418,1780849850000,-2913.93,0.00019726,2]
[424410434,1780849850000,-500.0,0.00019726,2]
[424410463,1780849850000,-684.39,0.00019726,2]
[424410403,1780849850000,-500.0,0.00019726,2]
[424410404,1780849850000,-500.0,0.00019726,2]
[424410405,1780849850000,-500.0,0.00019726,2]
[424410408,1780849850000,-500.0,0.00019726,2]
[424410407,1780849850000,-500.0,0.00019726,2]
[424410406,1780849850000,-2324.37,0.00019726,2]
[424410409,1780849850000,-500.0,0.00019726,2]
[424410411,1780849850000,-676.65,0.00019726,2]
[424410410,1780849850000,-542.24,0.00019726,2]
[424410412,1780849850000,-500.0,0.00019726,2]
[424410414,1780849850000,-718.33,0.00019726,2]
[424410413,1780849850000,-500.0,0.00019726,2]
[424410416,1780849850000,-500.0,0.00019726,2]
[424410417,1780849850000,-500.0,0.00019726,2]
[424410415,1780849850000,-500.0,0.00019726,2]
[424410419,1780849850000,-1000.0,0.00019726,2]
[424410421,1780849850000,-500.0,0.00019726,2]
[424410420,1780849850000,-4242.72,0.00019726,2]
[424410422,1780849850000,-766.75,0.00019726,2]
[424410425,1780849850000,-500.0,0.00019726,2]
[424410423,1780849850000,-1168.03,0.00019726,2]
[424410424,1780849850000,-500.0,0.00019726,2]
[424410426,1780849850000,-612.32,0.00019726,2]
[424410428,1780849850000,-500.0,0.00019726,2]
[424410431,1780849850000,-968.26,0.00019726,2]
[424410430,1780849850000,-1206.38,0.00019726,2]
[424410427,1780849850000,-540.69340715,0.00019726,2]
[424410429,1780849850000,-500.0,0.00019726,2]
[424410433,1780849850000,-500.0,0.00019726,2]
[424410465,1780849850000,-517.85,0.00019726,2]
[424410511,1780849850000,-500.0,0.00019726,2]
[424410467,1780849850000,-565.81,0.00019726,2]
[424410504,1780849850000,-3457.79,0.00019726,2]
[424410508,1780849850000,-6467.93,0.00019726,2]
[424410506,1780849850000,-500.0,0.00019726,2]
[424410500,1780849850000,-11432.12,0.00019726,2]
[424410505,1780849850000,-11860.97,0.00019726,2]
[424410507,1780849850000,-500.0,0.00019726,2]
[424410509,1780849850000,-500.0,0.00019726,2]
[424410529,1780849850000,-587.26098464,0.00019726,2]
[424410510,1780849850000,-4181.77,0.00019726,2]
[424410512,1780849850000,-1324.71,0.00019726,2]
[424410514,1780849850000,-691.71,0.00019726,2]
[424410517,1780849850000,-1189.6,0.00019726,2]
[424410515,1780849850000,-2106.67,0.00019726,2]
[424410516,1780849850000,-500.0,0.00019726,2]
[424410519,1780849850000,-1086.02,0.00019726,2]
[424410520,1780849850000,-846.13,0.00019726,2]
[424410523,1780849850000,-557.99,0.00019726,2]
[424410521,1780849850000,-500.0,0.00019726,2]
[424410522,1780849850000,-544.02,0.00019726,2]
[424410518,1780849850000,-500.0,0.00019726,2]
[424410525,1780849850000,-831.65,0.00019726,2]
[424410524,1780849850000,-500.0,0.00019726,2]
[424410527,1780849850000,-1495.68,0.00019726,2]
[424410526,1780849850000,-500.0,0.00019726,2]
[424410528,1780849850000,-519.37,0.00019726,2]
[424410531,1780849850000,-834.5,0.00019726,2]
[424410530,1780849850000,-500.0,0.00019726,2]
[424410532,1780849850000,-2517.47,0.00019726,2]
[424410466,1780849850000,-600.42,0.00019726,2]